fUSD/lending_fUSD_20240216
["ID","MTS","AMOUNT","RATE_DAILY","PERIOD"]
[314236292,1708114243557,-255.0,0.0004,12]
[314236293,1708114243567,-10000.0,0.0004,15]
[314236294,1708114243576,-255.0,0.0004,12]
[314236295,1708114243585,-150.0,0.0004,2]
[314236296,1708114243594,-255.0,0.0004,12]
[314236297,1708114243604,-255.0,0.0004,12]
[314236298,1708114243614,-255.0,0.0004,12]
[314236299,1708114243624,-205.0,0.0004,11]
[314236300,1708114243634,-19341.67,0.0004002,2]
[314236301,1708114243643,-19341.67,0.0004002,2]
[314236302,1708114243653,-19341.67,0.0004002,2]
[314236303,1708114243662,-19341.67,0.0004002,2]
[314236304,1708114243672,-19341.67,0.0004002,2]
[314236305,1708114243681,-19341.67,0.0004002,2]
[314236306,1708114243842,-19341.67,0.0004002,2]
[314236307,1708114243852,-19341.67,0.0004002,2]
[314236308,1708114243862,-19341.67,0.0004002,2]
[314236309,1708114243871,-19341.67,0.0004002,2]
[314236310,1708114243880,-19341.67,0.0004002,2]
[314236311,1708114243889,-19341.67,0.0004002,2]
[314236312,1708114243898,-19341.67,0.0004002,2]
[314236313,1708114243908,-19341.67,0.0004002,2]
[314236314,1708114243919,-19341.67,0.0004002,2]
[314236315,1708114243928,-19341.79912493,0.0004002,2]
[314236316,1708114243938,-200.0,0.00040033,15]
[314236317,1708114243947,-800.0,0.00040033,15]
[314236318,1708114243956,-150.0,0.00040055,2]
[314236319,1708114243965,-150.0,0.00040064,2]
[314236320,1708114243974,-150.0,0.00040067,2]
[314236321,1708114243983,-155.29627021,0.00040068,2]
[314236322,1708114243993,-300.0,0.00040115,2]
[314236323,1708114244002,-150.0,0.0004012,2]
[314236324,1708114244011,-150.0,0.00040136,2]
[314236325,1708114244020,-1585.87357355,0.00040146,2]
[314236326,1708114244029,-150.0,0.0004016,2]
[314236327,1708114244038,-150.0,0.00040174,2]
[314236328,1708114244047,-152.60143086,0.00040192,7]
[314236329,1708114244057,-1500.0,0.00040208,2]
[314236330,1708114244065,-150.0,0.00040211,2]
[314236331,1708114244075,-242.0,0.0004024,7]
[314236332,1708114244084,-150.0,0.00040279,2]
[314236333,1708114244093,-11788.28830914,0.00040283,2]
[314236334,1708114244103,-150.0,0.00040289,2]
[314236335,1708114244112,-6323.42450365,0.00040292,2]
[314236336,1708114244122,-150.0,0.00040292,2]
[314236337,1708114244131,-4174.8642794,0.00040292,7]
[314236338,1708114244140,-1600.60318,0.00040292,120]
[314236339,1708114244149,-500.0,0.00040292,120]
[314236340,1708114244158,-870.464545,0.00040292,120]
[314236341,1708114244167,-1736.07852,0.00040292,30]
[314236342,1708114244176,-3000.0,0.000403,43]
[314236343,1708114244185,-150.0,0.00040305,2]
[314236344,1708114244195,-3000.0,0.0004031,43]
[314236345,1708114244204,-150.0,0.00040313,2]
[314236346,1708114244213,-3000.0,0.0004032,43]
[314236347,1708114244223,-166.29,0.00040325,2]
[314236348,1708114244233,-150.0,0.00040329,2]
[314236349,1708114244242,-3000.0,0.0004033,43]
[314236350,1708114244251,-3000.0,0.0004034,43]
[314236351,1708114244261,-377.26912719,0.00040341,7]
[314236352,1708114244270,-100224.8370226,0.00040344,2]
[314236353,1708114244279,-19750.82656281,0.00040344,2]
[314236354,1708114244289,-3000.0,0.0004035,43]
[314236355,1708114244298,-3000.0,0.0004036,43]
[314236356,1708114244307,-3575.54764,0.0004037,43]
[314236357,1708114244317,-236.31716185,0.00040371,3]
[314236358,1708114244326,-150.0,0.00040371,3]
[314236359,1708114244335,-11410.9387857,0.00040372,2]
[314236360,1708114244344,-5172.8333669,0.00040372,2]
[314236361,1708114244353,-1649.79305873,0.00040394,9]
[314236362,1708114244362,-51282.0516924,0.00040444,2]
[314236363,1708114244371,-2631.90009545,0.00040449,5]
[314236364,1708114244380,-150.0,0.00040469,3]
[314236365,1708114244389,-236.31716185,0.00040469,3]
[314236366,1708114244398,-388.51,0.000405,7]
[314236367,1708114244407,-152.60143086,0.00040523,8]
[314236368,1708114244416,-300.0,0.00040547,2]
[314236369,1708114244425,-236.31716185,0.00040568,3]
[314236370,1708114244434,-150.0,0.00040568,3]
[314236371,1708114244443,-288.0,0.00040658,2]
[314236372,1708114244451,-236.31716185,0.00040666,3]
[314236373,1708114244461,-150.0,0.00040666,3]
[314236374,1708114244470,-182.73442421,0.000407,6]
[314236375,1708114244479,-930.54,0.00040722,2]
[314236376,1708114244491,-502.59,0.00040733,2]
[314236377,1708114244500,-236.31716185,0.00040765,3]
[314236378,1708114244510,-150.0,0.00040765,3]
[314236379,1708114244519,-242.0,0.00040788,7]
[314236380,1708114244529,-5127.69152407,0.00040805,14]
[314236381,1708114244538,-546.88165268,0.00040831,2]
[314236382,1708114244547,-3293.94364581,0.00040832,2]
[314236383,1708114244556,-2111.52532974,0.00040834,2]
[314236384,1708114244566,-152.60143086,0.00040853,9]
[314236385,1708114244576,-236.31716185,0.00040863,3]
[314236386,1708114244585,-150.0,0.00040863,3]
[314236387,1708114244594,-150.0,0.00040899,2]
[314236388,1708114244604,-556.57,0.000409,4]
[314236389,1708114244614,-556.57,0.000409,4]
[314236390,1708114244623,-556.57,0.000409,4]
[314236391,1708114244632,-556.57,0.000409,4]
[314236392,1708114244642,-556.57,0.000409,4]
[314236393,1708114244651,-556.57,0.000409,4]
[314236394,1708114244661,-556.57,0.000409,4]
[314236395,1708114244670,-556.57,0.000409,4]
[314236396,1708114244680,-556.57,0.000409,4]
[314236397,1708114244689,-556.57,0.000409,4]
[314236398,1708114244698,-556.57,0.000409,4]
[314236399,1708114244708,-556.57,0.000409,4]
[314236400,1708114244717,-556.57,0.000409,4]
[314236401,1708114244726,-556.57,0.000409,4]
[314236402,1708114244736,-556.57,0.000409,4]
[314236403,1708114244745,-556.57,0.000409,4]
[314236404,1708114244755,-556.57,0.000409,4]
[314236405,1708114244764,-556.57,0.000409,4]
[314236406,1708114244773,-556.57,0.000409,4]
[314236407,1708114244782,-556.57,0.000409,4]
[314236408,1708114244792,-151.25,0.00040913,2]
[314236409,1708114244802,-236.31716185,0.00040961,3]
[314236410,1708114244811,-150.0,0.00040961,3]
[314236411,1708114244820,-151.0,0.00040999,2]
[314236412,1708114244830,-100000.0,0.00041,21]
[314236413,1708114244839,-1104.83882378,0.00041,4]
[314236414,1708114244849,-166.0,0.00041,2]
[314236415,1708114244858,-3000.0,0.00041,45]
[314236416,1708114244868,-3000.0,0.0004101,45]
[314236417,1708114244877,-3000.0,0.0004102,45]
[314236418,1708114244886,-3000.0,0.0004103,45]
[314236419,1708114244897,-169.24,0.00041033,2]
[314236420,1708114244906,-3000.0,0.0004104,45]
[314236421,1708114244916,-3000.0,0.0004105,45]
[314236422,1708114244926,-236.31716185,0.0004106,3]
[314236423,1708114244936,-150.0,0.0004106,3]
[314236424,1708114244945,-3000.0,0.0004106,46]
[314236425,1708114244955,-3000.0,0.0004107,46]
[314236426,1708114244966,-3000.0,0.0004108,46]
[314236427,1708114244976,-3000.0,0.0004109,46]
[314236428,1708114244986,-316.8825,0.00041095,7]
[314236429,1708114244995,-750.0,0.00041095,2]
[314236430,1708114245005,-256.97434631,0.00041096,2]
[314236431,1708114245015,-1855.0,0.000411,2]
[314236432,1708114245024,-1000.0,0.000411,2]
[314236433,1708114245034,-3000.0,0.000411,2]
[314236434,1708114245043,-1626.0,0.000411,2]
[314236435,1708114245052,-1000.0,0.000411,2]
[314236436,1708114245062,-4687.0,0.000411,2]
[314236437,1708114245072,-3000.0,0.000411,46]
[314236438,1708114245081,-159.59431473,0.000411,7]
[314236439,1708114245090,-159.59431473,0.000411,7]
[314236440,1708114245100,-159.59431473,0.000411,7]
[314236441,1708114245108,-159.59431473,0.000411,7]
[314236442,1708114245119,-159.59431473,0.000411,7]
[314236443,1708114245128,-159.59431473,0.000411,7]
[314236444,1708114245137,-159.59431473,0.000411,7]
[314236445,1708114245146,-159.59431473,0.000411,7]
[314236446,1708114245155,-159.59431473,0.000411,7]
[314236447,1708114245164,-159.59431473,0.000411,7]
[314236448,1708114245173,-159.59431473,0.000411,7]
[314236449,1708114245182,-159.59431473,0.000411,7]
[314236450,1708114245191,-159.59431473,0.000411,7]
[314236451,1708114245200,-159.59,0.000411,7]
[314236452,1708114245210,-152.05174031,0.000411,7]
[314236453,1708114245219,-152.05174031,0.000411,7]
[314236454,1708114245228,-152.05174031,0.000411,7]
[314236455,1708114245237,-152.05174031,0.000411,7]
[314236456,1708114245247,-152.05174031,0.000411,7]
[314236457,1708114245256,-152.05,0.000411,7]
[314236458,1708114245265,-160.12000299,0.000411,7]
[314236459,1708114245274,-160.12000299,0.000411,7]
[314236460,1708114245284,-160.12000299,0.000411,7]
[314236461,1708114245293,-160.12000299,0.000411,7]
[314236462,1708114245302,-160.12000299,0.000411,7]
[314236463,1708114245311,-272.37,0.000411,2]
[314236464,1708114245320,-160.12000299,0.000411,7]
[314236465,1708114245329,-160.12000299,0.000411,7]
[314236466,1708114245338,-160.12000299,0.000411,7]
[314236467,1708114245348,-160.12,0.000411,7]
[314236468,1708114245357,-151.28805513,0.000411,7]
[314236470,1708114245367,-151.28805513,0.000411,7]
[314236471,1708114245376,-151.28805513,0.000411,7]
[314236472,1708114245385,-151.28805513,0.000411,7]
[314236473,1708114245394,-151.28805513,0.000411,7]
[314236474,1708114245404,-151.28805513,0.000411,7]
[314236475,1708114245413,-151.28805513,0.000411,7]
[314236477,1708114245422,-151.28805513,0.000411,7]
[314236479,1708114245431,-151.28805513,0.000411,7]
[314236480,1708114245441,-151.28805513,0.000411,7]
[314236481,1708114245450,-151.28,0.000411,7]
[314236482,1708114245459,-162.82219281,0.000411,7]
[314236483,1708114245468,-162.82219281,0.000411,7]
[314236484,1708114245478,-162.82219281,0.000411,7]
[314236485,1708114245486,-162.82219281,0.000411,7]
[314236487,1708114245496,-162.82219281,0.000411,7]
[314236490,1708114245508,-162.82219281,0.000411,7]
[314236491,1708114245517,-162.82219281,0.000411,7]
[314236492,1708114245526,-162.82219281,0.000411,7]
[314236493,1708114245535,-162.82219281,0.000411,7]
[314236494,1708114245546,-162.82,0.000411,7]
[314236495,1708114245555,-3000.0,0.0004111,46]
[314236496,1708114245564,-3000.0,0.0004112,46]
[314236497,1708114245574,-3000.0,0.0004113,46]
[314236498,1708114245583,-3000.0,0.0004114,46]
[314236499,1708114245592,-3000.0,0.0004115,46]
[314236500,1708114245601,-236.31716185,0.00041158,3]
[314236501,1708114245610,-150.0,0.00041158,3]
[314236502,1708114245619,-3000.0,0.0004116,46]
[314236503,1708114245628,-3000.0,0.0004117,46]
[314236504,1708114245637,-3419.374911,0.0004118,46]
[314236505,1708114245646,-152.60143086,0.00041183,11]
[314236506,1708114245655,-236.31716185,0.00041257,3]
[314236507,1708114245664,-150.0,0.00041257,3]
[314236508,1708114245674,-4173.67289983,0.00041292,2]
[314236509,1708114245683,-1548.23,0.00041317,2]
[314236510,1708114245692,-205.0,0.00041333,14]
[314236511,1708114245702,-242.0,0.00041336,7]
[314236512,1708114245712,-13671.32128414,0.0004134,2]
[314236513,1708114245721,-236.31716185,0.00041355,3]
[314236514,1708114245730,-150.0,0.00041355,3]
[314236515,1708114245739,-155.67,0.00041448,2]
[314236516,1708114245748,-236.31716185,0.00041453,3]
[314236517,1708114245758,-150.0,0.00041453,3]
[314236518,1708114245767,-167.32,0.00041455,2]
[314236519,1708114245776,-152.60143086,0.00041513,12]
[314236520,1708114245785,-231.10656455,0.00041522,4]
[314236521,1708114245795,-236.31716185,0.00041552,3]
[314236522,1708114245804,-150.0,0.00041552,3]
[314236523,1708114245813,-172.0,0.000416,53]
[314236524,1708114245822,-152.0,0.00041616,3]
[314236525,1708114245832,-5127.69152407,0.00041624,15]
[314236526,1708114245841,-1649.79305873,0.00041647,10]
[314236527,1708114245850,-236.31716185,0.0004165,3]
[314236528,1708114245859,-150.0,0.0004165,3]
[314236529,1708114245869,-2295.0,0.000417,87]
[314236531,1708114245879,-241.13472476,0.0004174,2]
[314236532,1708114245888,-236.31716185,0.00041749,3]
[314236533,1708114245897,-150.0,0.00041749,3]
[314236534,1708114245906,-182.1,0.00041781,2]
[314236535,1708114245915,-152.60143086,0.00041843,13]
[314236536,1708114245925,-236.31716185,0.00041847,3]
[314236538,1708114245935,-150.0,0.00041847,3]
[314236539,1708114245945,-242.0,0.00041884,7]
[314236540,1708114245954,-150.0,0.00041899,60]
[314236542,1708114245964,-360.0,0.00041917,2]
[314236544,1708114245972,-179.09,0.00041918,2]
[314236546,1708114245982,-150.0,0.00041918,2]
[314236548,1708114245991,-418.88,0.00041918,2]
[314236549,1708114246000,-150.0,0.00041918,2]
[314236551,1708114246009,-150.0,0.00041918,2]
[314236552,1708114246018,-843.88,0.00041918,2]
[314236554,1708114246027,-343.44,0.00041918,2]
[314236555,1708114246036,-150.0,0.00041918,2]
[314236556,1708114246045,-418.88,0.00041918,2]
[314236557,1708114246054,-150.0,0.00041918,2]
[314236558,1708114246063,-343.44,0.00041918,2]
[314236559,1708114246073,-412.02,0.00041918,2]
[314236560,1708114246082,-150.0,0.00041918,2]
[314236561,1708114246091,-343.44,0.00041918,2]
[314236562,1708114246100,-150.0,0.00041918,2]
[314236563,1708114246109,-418.88,0.00041918,2]
[314236564,1708114246119,-412.02,0.00041918,2]
[314236565,1708114246128,-150.0,0.00041918,2]
[314236566,1708114246137,-343.44,0.00041918,2]
[314236567,1708114246146,-418.88,0.00041918,2]
[314236568,1708114246155,-150.0,0.00041918,2]
[314236569,1708114246164,-412.02,0.00041918,2]
[314236570,1708114246321,-412.02,0.00041918,2]
[314236571,1708114246330,-418.88,0.00041918,2]
[314236572,1708114246340,-150.0,0.00041918,2]
[314236573,1708114246349,-343.44,0.00041918,2]
[314236574,1708114246358,-150.0,0.00041918,2]
[314236575,1708114246368,-236.31716185,0.00041945,3]
[314236576,1708114246377,-150.0,0.00041945,3]
[314236577,1708114246386,-250.0,0.00041957,2]
[314236578,1708114246395,-202.0,0.00041957,2]
[314236579,1708114246404,-250.0,0.00041957,2]
[314236580,1708114246413,-155.0,0.00041957,2]
[314236581,1708114246422,-158.0,0.00041957,2]
[314236582,1708114246431,-234.115,0.00041957,2]
[314236583,1708114246440,-158.487,0.00041957,2]
[314236584,1708114246449,-150.431,0.00041957,2]
[314236585,1708114246458,-245.254,0.00041957,2]
[314236586,1708114246467,-200.0,0.00041957,2]
[314236587,1708114246476,-152.115,0.00041957,2]
[314236588,1708114246485,-155.778,0.00041957,2]
[314236589,1708114246495,-151.915,0.00041957,2]
[314236590,1708114246509,-226.244,0.00041957,2]
[314236591,1708114246517,-250.0,0.00041957,2]
[314236592,1708114246527,-160.146,0.00041957,2]
[314236593,1708114246537,-150.0,0.00041957,2]
[314236594,1708114246546,-2834.0,0.00041957,2]
[314236595,1708114246555,-1865.0,0.00041957,2]
[314236596,1708114246564,-1369.0,0.00041957,2]
[314236597,1708114246573,-842.0,0.00041957,2]
[314236598,1708114246583,-532.0,0.00041957,2]
[314236599,1708114246592,-953.0,0.00041957,2]
[314236600,1708114246601,-709.883,0.00041957,2]
[314236601,1708114246610,-455.866,0.00041957,2]
[314236602,1708114246621,-1254.0,0.00041957,2]
[314236603,1708114246630,-1949.0,0.00041957,2]
[314236604,1708114246639,-329.952,0.00041957,2]
[314236605,1708114246648,-1231.0,0.00041957,2]
[314236606,1708114246658,-100000.0,0.00042,22]
[314236607,1708114246667,-965.23195016,0.00042,7]
[314236608,1708114246676,-315.88127363,0.00042,2]
[314236609,1708114246686,-8718.37051597,0.00042,2]
[314236610,1708114246695,-7461.29506656,0.00042,2]
[314236611,1708114246705,-2700.0,0.00042,3]
[314236612,1708114246714,-447.41497558,0.00042,4]
[314236613,1708114246723,-989.30707222,0.00042,120]
[314236614,1708114246733,-37548.16474214,0.00042,5]
[314236615,1708114246743,-331.6713111,0.00042,2]
[314236616,1708114246752,-1000.0,0.00042,30]
[314236617,1708114246761,-4000.0,0.00042,2]
[314236618,1708114246771,-1297.01661112,0.0004201,2]
[314236619,1708114246781,-2631.90009545,0.00042028,5]
[314236620,1708114246791,-236.31716185,0.00042044,3]
[314236621,1708114246800,-150.0,0.00042044,3]
[314236622,1708114246809,-859.72,0.00042092,15]
[314236623,1708114246819,-2970.33,0.00042113,2]
[314236624,1708114246828,-236.31716185,0.00042142,3]
[314236625,1708114246838,-150.0,0.00042142,3]
[314236626,1708114246848,-152.60143086,0.00042174,14]
[314236627,1708114246857,-151.25,0.00042192,2]
[314236628,1708114246868,-502.59,0.00042205,2]
[314236629,1708114246877,-11788.28830914,0.00042207,4]
[314236630,1708114246886,-236.31716185,0.00042241,3]
[314236631,1708114246896,-150.0,0.00042241,3]
[314236632,1708114246905,-350.0,0.00042334,2]
[314236633,1708114246915,-500.0,0.00042334,2]
[314236634,1708114246925,-500.0,0.00042334,2]
[314236635,1708114246934,-500.0,0.00042334,2]
[314236636,1708114246944,-500.0,0.00042334,2]
[314236637,1708114246953,-500.0,0.00042334,2]
[314236638,1708114246962,-500.0,0.00042334,2]
[314236639,1708114246971,-500.0,0.00042334,2]
[314236640,1708114246980,-500.0,0.00042334,2]
[314236641,1708114246989,-500.0,0.00042334,2]
[314236642,1708114246999,-500.0,0.00042334,2]
[314236643,1708114247008,-500.0,0.00042334,2]
[314236644,1708114247017,-500.0,0.00042334,2]
[314236645,1708114247026,-500.0,0.00042334,2]
[314236646,1708114247035,-500.0,0.00042334,2]
[314236647,1708114247044,-500.0,0.00042334,2]
[314236648,1708114247053,-500.0,0.00042334,2]
[314236649,1708114247062,-500.0,0.00042334,2]
[314236650,1708114247071,-500.0,0.00042334,2]
[314236651,1708114247080,-500.0,0.00042334,2]
[314236652,1708114247089,-500.0,0.00042334,2]
[314236653,1708114247098,-500.0,0.00042334,2]
[314236654,1708114247107,-500.0,0.00042334,2]
[314236655,1708114247117,-500.0,0.00042334,2]
[314236656,1708114247127,-500.0,0.00042334,2]
[314236657,1708114247136,-500.0,0.00042334,2]
[314236658,1708114247145,-500.0,0.00042334,2]
[314236659,1708114247154,-500.0,0.00042334,2]
[314236660,1708114247163,-500.0,0.00042334,2]
[314236661,1708114247173,-500.0,0.00042334,2]
[314236662,1708114247182,-500.0,0.00042334,2]
[314236663,1708114247192,-500.0,0.00042334,2]
[314236664,1708114247201,-500.0,0.00042334,2]
[314236665,1708114247211,-500.0,0.00042334,2]
[314236666,1708114247220,-500.0,0.00042334,2]
[314236667,1708114247230,-500.0,0.00042334,2]
[314236668,1708114247239,-500.0,0.00042334,2]
[314236669,1708114247248,-500.0,0.00042334,2]
[314236670,1708114247257,-500.0,0.00042334,2]
[314236671,1708114247266,-500.0,0.00042334,2]
[314236672,1708114247275,-500.0,0.00042334,2]
[314236673,1708114247284,-236.31716185,0.00042339,3]
[314236674,1708114247294,-150.0,0.00042339,3]
[314236675,1708114247302,-388.51,0.000424,7]
[314236676,1708114247311,-155.08,0.00042407,2]
[314236677,1708114247321,-242.0,0.00042432,7]
[314236678,1708114247330,-236.31716185,0.00042437,3]
[314236679,1708114247339,-150.0,0.00042437,3]
[314236680,1708114247349,-5127.69152407,0.00042443,17]
[314236681,1708114247358,-747.91,0.0004248,2]
[314236682,1708114247367,-152.60143086,0.00042504,16]
[314236683,1708114247376,-236.31716185,0.00042536,4]
[314236684,1708114247386,-150.0,0.00042536,4]
[314236685,1708114247395,-236.31716185,0.00042634,4]
[314236686,1708114247403,-150.0,0.00042634,4]
[314236687,1708114247413,-205.0,0.00042667,18]
[314236688,1708114247422,-236.31716185,0.00042733,4]
[314236689,1708114247431,-819.94,0.0004274,2]
[314236690,1708114247440,-167.18,0.0004274,2]
[314236691,1708114247450,-312.47,0.0004274,2]
[314236692,1708114247459,-835.87,0.0004274,2]
[314236693,1708114247468,-338.42,0.0004274,2]
[314236694,1708114247478,-640.0,0.00042797,2]
[314236695,1708114247487,-264085.5415174,0.00042819,5]
[314236696,1708114247496,-221.31951587,0.00042826,30]
[314236697,1708114247509,-236.31716185,0.00042831,4]
[314236698,1708114247518,-152.60143086,0.00042834,17]
[314236699,1708114247527,-3142.20222836,0.00042888,32]
[314236700,1708114247538,-729.76779221,0.00042897,10]
[314236701,1708114247547,-150.0,0.00042899,60]
[314236702,1708114247556,-1649.79305873,0.00042899,11]
[314236703,1708114247565,-217.07,0.000429,7]
[314236704,1708114247574,-393.57,0.000429,7]
[314236705,1708114247584,-2111.52532974,0.000429,2]
[314236706,1708114247593,-3293.94364581,0.000429,2]
[314236707,1708114247602,-236.31716185,0.00042929,4]
[314236708,1708114247612,-237.0,0.00042974,2]
[314236709,1708114247622,-429.0,0.00042974,2]
[314236710,1708114247631,-1005.0,0.00042974,2]
[314236711,1708114247641,-858.0,0.00042974,2]
[314236712,1708114247650,-343.0,0.00042974,2]
[314236713,1708114247658,-321.0,0.00042974,2]
[314236714,1708114247668,-2871.0,0.00042974,2]
[314236715,1708114247677,-150.0,0.00042974,2]
[314236716,1708114247686,-1138.0,0.00042974,2]
[314236717,1708114247695,-454.0,0.00042974,2]
[314236718,1708114247704,-389.0,0.00042974,2]
[314236719,1708114247713,-19846.0,0.00042974,2]
[314236720,1708114247723,-2927.0,0.00042974,2]
[314236721,1708114247732,-5628.0,0.00042974,2]
[314236722,1708114247742,-826.978,0.00042974,2]
[314236723,1708114247751,-8164.0,0.00042974,2]
[314236724,1708114247761,-4098.0,0.00042974,2]
[314236725,1708114247770,-150.0,0.00042974,2]
[314236726,1708114247779,-1037.0,0.00042974,2]
[314236727,1708114247788,-242.0,0.00042979,7]
[314236728,1708114247798,-930.54,0.00042986,2]
[314236729,1708114247807,-330633.14328738,0.00042998,3]
[314236730,1708114247817,-150.0,0.00042999,60]
[314236731,1708114247826,-150.0,0.00042999,60]
[314236732,1708114247835,-503.87965527,0.00042999,60]
[314236733,1708114247845,-100000.0,0.00043,23]
[314236734,1708114247854,-556.57,0.00043,4]
[314236735,1708114247864,-556.57,0.00043,4]
[314236736,1708114247873,-556.57,0.00043,4]
[314236737,1708114247882,-556.57,0.00043,4]
[314236738,1708114247892,-556.57,0.00043,4]
[314236739,1708114247901,-556.57,0.00043,4]
[314236740,1708114247910,-556.57,0.00043,4]
[314236741,1708114247921,-556.57,0.00043,4]
[314236742,1708114247931,-556.57,0.00043,4]
[314236743,1708114247940,-556.57,0.00043,4]
[314236744,1708114247949,-556.57,0.00043,4]
[314236745,1708114247958,-556.57,0.00043,4]
[314236746,1708114247968,-556.57,0.00043,4]
[314236747,1708114247977,-556.57,0.00043,4]
[314236748,1708114247986,-556.57,0.00043,4]
[314236749,1708114247995,-556.57,0.00043,4]
[314236750,1708114248004,-556.57,0.00043,4]
[314236751,1708114248013,-556.57,0.00043,4]
[314236752,1708114248021,-556.57,0.00043,4]
[314236753,1708114248030,-556.57,0.00043,4]
[314236754,1708114248039,-440.0,0.00043,30]
[314236755,1708114248048,-346.0,0.00043,30]
[314236756,1708114248058,-236.31716185,0.00043028,4]
[314236757,1708114248067,-236.31716185,0.00043126,4]
[314236758,1708114248076,-301.97,0.00043151,2]
[314236759,1708114248086,-405.38,0.00043151,2]
[314236760,1708114248095,-405.38,0.00043151,2]
[314236761,1708114248105,-405.38,0.00043151,2]
[314236762,1708114248115,-405.38,0.00043151,2]
[314236763,1708114248124,-405.38,0.00043151,2]
[314236764,1708114248133,-152.60143086,0.00043164,18]
[314236765,1708114248143,-221.31951587,0.00043219,30]
[314236766,1708114248152,-236.31716185,0.00043225,4]
[314236767,1708114248161,-221.31951587,0.0004326,30]
[314236768,1708114248170,-5127.69152407,0.00043262,18]
[314236769,1708114248180,-995.48085935,0.000433,60]
[314236770,1708114248189,-236.31716185,0.00043323,4]
[314236771,1708114248198,-162.037714,0.00043351,30]
[314236772,1708114248207,-689.264445,0.00043351,30]
[314236773,1708114248217,-321.846862,0.00043351,30]
[314236774,1708114248225,-175.935141,0.00043351,30]
[314236775,1708114248235,-173.803498,0.00043351,30]
[314236776,1708114248243,-689.264445,0.00043351,30]
[314236777,1708114248253,-289.262272,0.00043351,30]
[314236778,1708114248262,-211.792792,0.00043351,30]
[314236779,1708114248272,-200.158958,0.00043351,30]
[314236780,1708114248282,-203.653691,0.00043351,30]
[314236781,1708114248291,-391.303951,0.00043351,30]
[314236782,1708114248302,-173.256688,0.00043351,30]
[314236783,1708114248311,-180.529012,0.00043351,30]
[314236784,1708114248320,-280.827255,0.00043351,30]
[314236785,1708114248329,-195.651975,0.00043351,30]
[314236786,1708114248338,-172.125901,0.00043351,30]
[314236787,1708114248348,-168.848607,0.00043351,30]
[314236788,1708114248357,-151.25,0.0004347,2]
[314236789,1708114248367,-250.0,0.00043488,3]
[314236790,1708114248376,-512.5,0.00043488,3]
[314236791,1708114248385,-152.60143086,0.00043494,19]
[314236792,1708114248394,-5024.334163,0.000435,2]
[314236793,1708114248403,-242.0,0.00043527,7]
[314236794,1708114248412,-377.75165031,0.00043538,3]
[314236795,1708114248421,-2631.90009545,0.00043607,5]
[314236796,1708114248430,-328.47441388,0.00043615,3]
[314236797,1708114248439,-246.95621993,0.00043641,3]
[314236798,1708114248448,-502.59,0.00043677,2]
[314236799,1708114248458,-204.2507985,0.00043679,4]
[314236800,1708114248466,-2622.8346785,0.00043698,4]
[314236801,1708114248616,-1140.535984,0.00043711,5]
[314236802,1708114248625,-1174.87295513,0.00043711,5]
[314236803,1708114248634,-459.57377898,0.00043711,5]
[314236804,1708114248643,-211.69868637,0.00043711,3]
[314236805,1708114248653,-1000.0,0.000438,2]